[Event "*** Titled Tuesday Blitz"]
[Site "Chess.com"]
[Date "2021.04.20"]
[Round "6"]
[White "WisdomGame"]
[Black "kai_nov"]
[Result "0-1"]
[WhiteElo "2091"]
[BlackElo "2318"]
[TimeControl "180+1"]
[EndTime "11:05:30 PDT"]
[Termination "kai_nov won by checkmate"]

1. Nf3 {[%clk 0:03:00.9]} 1... d5 {[%clk 0:02:58.7]} 2. g3 {[%clk 0:03:00.5]}
2... c5 {[%clk 0:02:51.1]} 3. Bg2 {[%clk 0:03:01.4]} 3... Nf6 {[%clk 0:02:43.4]}
4. O-O {[%clk 0:03:02.3]} 4... e6 {[%clk 0:02:31.4]} 5. c4 {[%clk 0:03:03.2]}
5... d4 {[%clk 0:02:27.6]} 6. d3 {[%clk 0:02:54]} 6... Nc6 {[%clk 0:02:26.4]} 7.
e3 {[%clk 0:02:53.5]} 7... Bd6 {[%clk 0:02:22.1]} 8. exd4 {[%clk 0:02:53.8]}
8... cxd4 {[%clk 0:02:21.1]} 9. Re1 {[%clk 0:02:52.1]} 9... O-O {[%clk
0:02:17.9]} 10. Bd2 {[%clk 0:02:50.1]} 10... Re8 {[%clk 0:02:14.2]} 11. a3
{[%clk 0:02:46]} 11... a5 {[%clk 0:02:12.1]} 12. Ng5 {[%clk 0:02:43]} 12... e5
{[%clk 0:02:04.1]} 13. h4 {[%clk 0:02:39.6]} 13... Bg4 {[%clk 0:01:51.4]} 14.
Qc1 {[%clk 0:02:34]} 14... Bf5 {[%clk 0:01:45.9]} 15. Ne4 {[%clk 0:02:31.3]}
15... Nxe4 {[%clk 0:01:42.5]} 16. Bxe4 {[%clk 0:02:32.2]} 16... Bxe4 {[%clk
0:01:42.2]} 17. Rxe4 {[%clk 0:02:33.1]} 17... f5 {[%clk 0:01:40.7]} 18. Bg5
{[%clk 0:02:31.7]} 18... Qd7 {[%clk 0:01:38.5]} 19. Re1 {[%clk 0:02:30.8]} 19...
e4 {[%clk 0:01:35.4]} 20. Qd1 {[%clk 0:01:49.4]} 20... h6 {[%clk 0:01:26.8]} 21.
Bc1 {[%clk 0:01:47.4]} 21... exd3 {[%clk 0:00:52.6]} 22. Rxe8+ {[%clk
0:01:48.3]} 22... Rxe8 {[%clk 0:00:47.9]} 23. Nd2 {[%clk 0:01:49.2]} 23... f4
{[%clk 0:00:40.2]} 24. Nf1 {[%clk 0:01:40.6]} 24... fxg3 {[%clk 0:00:35.6]} 25.
fxg3 {[%clk 0:01:41.5]} 25... Qf5 {[%clk 0:00:22.5]} 26. g4 {[%clk 0:01:10.7]}
26... Qe4 {[%clk 0:00:21.7]} 27. Bd2 {[%clk 0:00:49.4]} 27... Ne5 {[%clk
0:00:21.2]} 28. Nh2 {[%clk 0:00:49.4]} 28... Nxc4 {[%clk 0:00:18]} 29. Nf1
{[%clk 0:00:28.6]} 29... Ne3 {[%clk 0:00:14.8]} 30. Qb3+ {[%clk 0:00:17.9]}
30... Kh8 {[%clk 0:00:14]} 31. Bxe3 {[%clk 0:00:16]} 31... dxe3 {[%clk
0:00:13.8]} 32. Re1 {[%clk 0:00:16.9]} 32... e2 {[%clk 0:00:13.1]} 33. Nh2
{[%clk 0:00:07.9]} 33... Bc5# {[%clk 0:00:12.6]} 0-1

[Event "*** Titled Tuesday Blitz"]
[Site "Chess.com"]
[Date "2021.04.20"]
[Round "6"]
[White "GregShahade"]
[Black "exoticprincess"]
[Result "0-1"]
[WhiteElo "2709"]
[BlackElo "2927"]
[TimeControl "180+1"]
[EndTime "11:05:32 PDT"]
[Termination "exoticprincess won by resignation"]

1. e4 {[%clk 0:03:00.9]} 1... e5 {[%clk 0:03:00]} 2. Nf3 {[%clk 0:03:00.8]} 2...
Nf6 {[%clk 0:03:00.6]} 3. Nxe5 {[%clk 0:03:00.3]} 3... d6 {[%clk 0:03:01.1]} 4.
Nf3 {[%clk 0:03:00.8]} 4... Nxe4 {[%clk 0:03:01.6]} 5. Nc3 {[%clk 0:03:01.4]}
5... Nxc3 {[%clk 0:03:01.6]} 6. dxc3 {[%clk 0:03:02.3]} 6... Be7 {[%clk
0:03:02.5]} 7. Be3 {[%clk 0:03:00.8]} 7... Nc6 {[%clk 0:03:03.4]} 8. Qd2 {[%clk
0:03:00.8]} 8... Bf5 {[%clk 0:03:03.7]} 9. O-O-O {[%clk 0:02:59.7]} 9... O-O
{[%clk 0:03:03.8]} 10. Rg1 {[%clk 0:02:58.7]} 10... Qd7 {[%clk 0:03:03.7]} 11.
h3 {[%clk 0:02:53.2]} 11... Rae8 {[%clk 0:02:57.8]} 12. g4 {[%clk 0:02:53.4]}
12... Be4 {[%clk 0:02:58]} 13. Be2 {[%clk 0:02:42.8]} 13... a6 {[%clk
0:02:55.7]} 14. Ng5 {[%clk 0:02:34]} 14... Bxg5 {[%clk 0:02:54.9]} 15. Bxg5
{[%clk 0:02:33.9]} 15... Qe6 {[%clk 0:02:52.8]} 16. b3 {[%clk 0:02:07]} 16...
Bxc2 {[%clk 0:02:34.1]} 17. Rde1 {[%clk 0:01:59.5]} 17... Bg6 {[%clk 0:01:37.6]}
18. f4 {[%clk 0:01:59.2]} 18... Be4 {[%clk 0:01:30.7]} 19. Bc4 {[%clk
0:01:33.8]} 19... d5 {[%clk 0:01:27.6]} 20. f5 {[%clk 0:01:26.4]} 20... Qd6
{[%clk 0:01:25]} 21. Bd3 {[%clk 0:01:01.8]} 21... Bxd3 {[%clk 0:01:02.6]} 22.
Qxd3 {[%clk 0:01:00.5]} 22... Ne5 {[%clk 0:01:02.7]} 23. Qg3 {[%clk 0:00:52]}
23... d4 {[%clk 0:00:57.7]} 24. Bf4 {[%clk 0:00:43.3]} 24... dxc3 {[%clk
0:00:57.6]} 25. Rxe5 {[%clk 0:00:33.3]} 25... Rxe5 {[%clk 0:00:57.4]} 26. Qxc3
{[%clk 0:00:33.6]} 26... Qa3+ {[%clk 0:00:50.8]} 27. Qb2 {[%clk 0:00:28.1]}
27... Qxb2+ {[%clk 0:00:50.5]} 28. Kxb2 {[%clk 0:00:28.8]} 28... Re2+ {[%clk
0:00:51.1]} 29. Kc3 {[%clk 0:00:28.3]} 29... Rxa2 {[%clk 0:00:49.3]} 30. Rd1
{[%clk 0:00:26.4]} 30... Rf2 {[%clk 0:00:44.8]} 31. Bxc7 {[%clk 0:00:26.2]}
31... Rf3+ {[%clk 0:00:43.7]} 32. Kb4 {[%clk 0:00:26]} 32... Rxh3 {[%clk
0:00:43.2]} 33. Rd7 {[%clk 0:00:18.1]} 33... h5 {[%clk 0:00:42.7]} 34. g5 {[%clk
0:00:15.5]} 34... Re8 {[%clk 0:00:39.1]} 35. g6 {[%clk 0:00:13.5]} 35... fxg6
{[%clk 0:00:37.5]} 36. fxg6 {[%clk 0:00:13.9]} 36... Rh4+ {[%clk 0:00:36.4]} 37.
Ka3 {[%clk 0:00:11.8]} 37... Rg4 {[%clk 0:00:36.3]} 38. Rd6 {[%clk 0:00:10.7]}
38... h4 {[%clk 0:00:34.2]} 39. Rb6 {[%clk 0:00:02.6]} 39... h3 {[%clk
0:00:31.8]} 40. Rxb7 {[%clk 0:00:03.1]} 40... Rxg6 {[%clk 0:00:31.1]} 41. Rb4
{[%clk 0:00:02.6]} 41... Rh6 {[%clk 0:00:29.6]} 0-1

[Event "*** Titled Tuesday Blitz"]
[Site "Chess.com"]
[Date "2021.04.20"]
[Round "6"]
[White "mjray79"]
[Black "chess94cu"]
[Result "1-0"]
[WhiteElo "2445"]
[BlackElo "2579"]
[TimeControl "180+1"]
[EndTime "11:05:32 PDT"]
[Termination "mjray79 won by resignation"]

1. d4 {[%clk 0:03:00.9]} 1... Nf6 {[%clk 0:02:58.4]} 2. c4 {[%clk 0:03:01.5]}
2... e6 {[%clk 0:02:56.9]} 3. g3 {[%clk 0:03:01.4]} 3... c5 {[%clk 0:02:55.8]}
4. d5 {[%clk 0:03:00.7]} 4... exd5 {[%clk 0:02:56]} 5. cxd5 {[%clk 0:03:01.6]}
5... d6 {[%clk 0:02:56.8]} 6. Bg2 {[%clk 0:03:01.5]} 6... g6 {[%clk 0:02:57.3]}
7. Nf3 {[%clk 0:03:01.3]} 7... Bg7 {[%clk 0:02:58.2]} 8. O-O {[%clk 0:03:01.9]}
8... O-O {[%clk 0:02:58.5]} 9. Nc3 {[%clk 0:03:02.5]} 9... a6 {[%clk 0:02:56.2]}
10. a4 {[%clk 0:03:02.1]} 10... Nbd7 {[%clk 0:02:32.8]} 11. Bf4 {[%clk
0:03:00.7]} 11... Qe7 {[%clk 0:02:26.3]} 12. Rc1 {[%clk 0:02:48.6]} 12... Rb8
{[%clk 0:02:22]} 13. a5 {[%clk 0:02:43.2]} 13... Re8 {[%clk 0:02:19.7]} 14. Na4
{[%clk 0:02:37.4]} 14... b5 {[%clk 0:02:07.9]} 15. Nxc5 {[%clk 0:02:27.7]} 15...
Nxc5 {[%clk 0:01:54]} 16. Rxc5 {[%clk 0:02:26.8]} 16... dxc5 {[%clk 0:01:54.3]}
17. Bxb8 {[%clk 0:02:26.4]} 17... Bb7 {[%clk 0:01:53.7]} 18. d6 {[%clk
0:02:15.2]} 18... Qxe2 {[%clk 0:01:38.3]} 19. Ba7 {[%clk 0:02:14.3]} 19... Nd7
{[%clk 0:01:29.9]} 20. Ne5 {[%clk 0:02:00]} 20... Qxd1 {[%clk 0:01:05.2]} 21.
Rxd1 {[%clk 0:02:00.9]} 21... Bxg2 {[%clk 0:01:05.2]} 22. Nxd7 {[%clk 0:02:01]}
22... Bf3 {[%clk 0:01:05.7]} 23. Rb1 {[%clk 0:01:49.6]} 23... Rd8 {[%clk
0:01:01.2]} 24. Nxc5 {[%clk 0:01:43.1]} 24... Rxd6 {[%clk 0:01:01]} 25. b4
{[%clk 0:01:39.3]} 25... h5 {[%clk 0:00:57.9]} 26. h4 {[%clk 0:01:37.8]} 26...
Bf6 {[%clk 0:00:48.7]} 27. Bb6 {[%clk 0:01:31.7]} 27... Rd2 {[%clk 0:00:35.9]}
28. Nxa6 {[%clk 0:01:28.8]} 28... Ra2 {[%clk 0:00:35.9]} 29. Nc7 {[%clk
0:01:26.4]} 29... Be2 {[%clk 0:00:31.6]} 30. a6 {[%clk 0:01:23]} 30... Bf3
{[%clk 0:00:28.2]} 31. a7 {[%clk 0:01:21.3]} 31... Bd8 {[%clk 0:00:26.6]} 32.
a8=Q {[%clk 0:01:02.7]} 32... Bxa8 {[%clk 0:00:24.2]} 33. Nxa8 {[%clk
0:01:03.6]} 33... Rxa8 {[%clk 0:00:23.8]} 34. Bc5 {[%clk 0:01:03.7]} 34... Bf6
{[%clk 0:00:20.2]} 35. Rd1 {[%clk 0:01:03]} 35... Ra2 {[%clk 0:00:17.6]} 36. Rd7
{[%clk 0:01:02.6]} 36... Rb2 {[%clk 0:00:17.6]} 37. Rb7 {[%clk 0:01:02.4]} 37...
Bc3 {[%clk 0:00:17.3]} 38. Rxb5 {[%clk 0:01:02.2]} 38... f5 {[%clk 0:00:17.5]}
39. Rb7 {[%clk 0:01:01.8]} 39... Be5 {[%clk 0:00:14.7]} 40. Be3 {[%clk
0:00:55.8]} 40... f4 {[%clk 0:00:06.5]} 41. gxf4 {[%clk 0:00:53.1]} 41... Bf6
{[%clk 0:00:06.4]} 42. Rb6 {[%clk 0:00:53.5]} 42... Kf7 {[%clk 0:00:05.6]} 43.
Rxf6+ {[%clk 0:00:53.6]} 43... Ke7 {[%clk 0:00:03.7]} 44. Rb6 {[%clk 0:00:53]}
44... Rb1+ {[%clk 0:00:03.3]} 45. Kg2 {[%clk 0:00:53.1]} 45... Kf7 {[%clk
0:00:03.9]} 46. b5 {[%clk 0:00:52.8]} 1-0

[Event "*** Titled Tuesday Blitz"]
[Site "Chess.com"]
[Date "2021.04.20"]
[Round "6"]
[White "Chernov_Alexander_A"]
[Black "WiktoriaPOL"]
[Result "0-1"]
[WhiteElo "2290"]
[BlackElo "2047"]
[TimeControl "180+1"]
[EndTime "11:05:32 PDT"]
[Termination "WiktoriaPOL won by resignation"]

1. Nf3 {[%clk 0:03:00.9]} 1... Nf6 {[%clk 0:02:59]} 2. g3 {[%clk 0:02:59.6]}
2... g6 {[%clk 0:02:59.4]} 3. Bg2 {[%clk 0:02:59.9]} 3... Bg7 {[%clk 0:03:00.2]}
4. O-O {[%clk 0:02:59.7]} 4... O-O {[%clk 0:03:00.8]} 5. d4 {[%clk 0:02:59.3]}
5... d6 {[%clk 0:03:01.4]} 6. b3 {[%clk 0:02:57.9]} 6... Nc6 {[%clk 0:02:57.3]}
7. Bb2 {[%clk 0:02:57.3]} 7... e5 {[%clk 0:02:56.6]} 8. dxe5 {[%clk 0:02:55.8]}
8... dxe5 {[%clk 0:02:56.2]} 9. c4 {[%clk 0:02:46.8]} 9... e4 {[%clk 0:02:55.2]}
10. Ng5 {[%clk 0:02:43.1]} 10... Qxd1 {[%clk 0:02:52.1]} 11. Rxd1 {[%clk
0:02:42.1]} 11... Bf5 {[%clk 0:02:51.1]} 12. Nc3 {[%clk 0:02:37]} 12... Rfe8
{[%clk 0:02:47.2]} 13. Nd5 {[%clk 0:02:22.2]} 13... Nxd5 {[%clk 0:02:43.4]} 14.
Bxg7 {[%clk 0:02:20.8]} 14... Ne3 {[%clk 0:02:34.4]} 15. fxe3 {[%clk 0:02:19.8]}
15... Kxg7 {[%clk 0:02:34.4]} 16. g4 {[%clk 0:02:13.1]} 16... Bxg4 {[%clk
0:02:32.3]} 17. Nxe4 {[%clk 0:02:12.8]} 17... Bxe2 {[%clk 0:02:29.7]} 18. Rd2
{[%clk 0:02:12.4]} 18... Bg4 {[%clk 0:02:28.3]} 19. Kf2 {[%clk 0:02:10.3]} 19...
Bf5 {[%clk 0:02:27.8]} 20. Nc5 {[%clk 0:02:09.7]} 20... Ne5 {[%clk 0:02:23.1]}
21. Bxb7 {[%clk 0:02:01]} 21... Rab8 {[%clk 0:02:18.7]} 22. Bf3 {[%clk
0:01:55.7]} 22... Bg4 {[%clk 0:02:12.1]} 23. Bg2 {[%clk 0:01:50.7]} 23... Bh5
{[%clk 0:02:06.2]} 24. h3 {[%clk 0:01:49.9]} 24... Rbd8 {[%clk 0:02:02.9]} 25.
Ke1 {[%clk 0:01:38.9]} 25... Nf3+ {[%clk 0:01:58.1]} 26. Bxf3 {[%clk 0:01:37.7]}
26... Bxf3 {[%clk 0:01:59]} 27. Rd4 {[%clk 0:01:34.4]} 27... Rxd4 {[%clk
0:01:57.3]} 28. Kf2 {[%clk 0:01:31]} 28... Rh4 {[%clk 0:01:54.3]} 29. Kxf3
{[%clk 0:01:30.1]} 29... Rxh3+ {[%clk 0:01:54.2]} 30. Kf2 {[%clk 0:01:28.7]}
30... Rhxe3 {[%clk 0:01:52.5]} 31. a4 {[%clk 0:01:23.6]} 31... Re2+ {[%clk
0:01:48.5]} 32. Kf1 {[%clk 0:01:20]} 32... Rh2 {[%clk 0:01:46.9]} 33. Kg1 {[%clk
0:01:18.3]} 33... Ree2 {[%clk 0:01:44.6]} 34. Rd1 {[%clk 0:01:16.7]} 34... Reg2+
{[%clk 0:01:43.7]} 35. Kf1 {[%clk 0:01:16.4]} 35... Rh1+ {[%clk 0:01:43]} 36.
Kxg2 {[%clk 0:01:16.1]} 36... Rxd1 {[%clk 0:01:43.6]} 37. Na6 {[%clk 0:01:15.8]}
37... c6 {[%clk 0:01:40.7]} 38. Nb8 {[%clk 0:01:11.2]} 38... Rd6 {[%clk
0:01:39.2]} 39. c5 {[%clk 0:01:07.3]} 39... Re6 {[%clk 0:01:36.1]} 40. b4 {[%clk
0:01:05.5]} 40... h5 {[%clk 0:01:34.3]} 41. b5 {[%clk 0:01:04.2]} 41... cxb5
{[%clk 0:01:29.8]} 42. axb5 {[%clk 0:01:03.7]} 42... Re8 {[%clk 0:01:26.3]} 43.
Nc6 {[%clk 0:00:55.7]} 43... Rc8 {[%clk 0:01:16.8]} 44. Nxa7 {[%clk 0:00:49.8]}
44... Rxc5 {[%clk 0:01:16.2]} 45. b6 {[%clk 0:00:49.1]} 45... Rc2+ {[%clk
0:01:15.8]} 46. Kg3 {[%clk 0:00:46.6]} 46... Rb2 {[%clk 0:01:15.4]} 47. Nc8
{[%clk 0:00:46.1]} 47... g5 {[%clk 0:01:12.4]} 48. Kf3 {[%clk 0:00:43.3]} 48...
f5 {[%clk 0:01:09.2]} 49. Ke3 {[%clk 0:00:40]} 49... h4 {[%clk 0:01:08.1]} 50.
Nd6 {[%clk 0:00:35.3]} 50... Rxb6 {[%clk 0:01:04.1]} 51. Nxf5+ {[%clk
0:00:33.5]} 51... Kg6 {[%clk 0:01:03.5]} 52. Nd4 {[%clk 0:00:31.9]} 52... Kh5
{[%clk 0:00:59.9]} 53. Kf2 {[%clk 0:00:29.1]} 53... g4 {[%clk 0:00:58.7]} 54.
Ke3 {[%clk 0:00:26.4]} 54... Rf6 {[%clk 0:00:55.8]} 55. Ke2 {[%clk 0:00:21.2]}
55... h3 {[%clk 0:00:53.4]} 0-1

[Event "*** Titled Tuesday Blitz"]
[Site "Chess.com"]
[Date "2021.04.20"]
[Round "6"]
[White "not_najdorfs_player"]
[Black "ChampStan"]
[Result "1-0"]
[WhiteElo "2370"]
[BlackElo "2089"]
[TimeControl "180+1"]
[EndTime "11:05:33 PDT"]
[Termination "not_najdorfs_player won by resignation"]

1. Nf3 {[%clk 0:02:49.9]} 1... Nf6 {[%clk 0:02:57.1]} 2. d4 {[%clk 0:02:45.4]}
2... e6 {[%clk 0:02:53.6]} 3. e3 {[%clk 0:02:41]} 3... b6 {[%clk 0:02:48.1]} 4.
c4 {[%clk 0:02:06.5]} 4... Bb7 {[%clk 0:02:46.2]} 5. Bd3 {[%clk 0:02:02.4]} 5...
Be7 {[%clk 0:02:32.3]} 6. O-O {[%clk 0:02:01.1]} 6... O-O {[%clk 0:02:31.6]} 7.
Nbd2 {[%clk 0:01:56.9]} 7... d5 {[%clk 0:02:30.7]} 8. b3 {[%clk 0:01:55.4]} 8...
c5 {[%clk 0:02:20.8]} 9. dxc5 {[%clk 0:01:51.6]} 9... bxc5 {[%clk 0:02:17.1]}
10. Bb2 {[%clk 0:01:50.1]} 10... Nc6 {[%clk 0:02:13.8]} 11. Qe2 {[%clk 0:01:38]}
11... Re8 {[%clk 0:02:01]} 12. Rfd1 {[%clk 0:01:30.4]} 12... Bf8 {[%clk
0:01:45]} 13. Ne5 {[%clk 0:01:19.8]} 13... Nxe5 {[%clk 0:01:42.3]} 14. Bxe5
{[%clk 0:01:20.7]} 14... Nd7 {[%clk 0:01:41.3]} 15. Bb2 {[%clk 0:01:20.5]} 15...
a5 {[%clk 0:01:10.9]} 16. Nf3 {[%clk 0:01:07.5]} 16... a4 {[%clk 0:00:58.5]} 17.
Rac1 {[%clk 0:01:06.2]} 17... axb3 {[%clk 0:00:56.7]} 18. axb3 {[%clk
0:01:07.1]} 18... h6 {[%clk 0:00:55.2]} 19. Bb1 {[%clk 0:01:06.6]} 19... Qb6
{[%clk 0:00:16]} 20. Qc2 {[%clk 0:00:56.5]} 20... f5 {[%clk 0:00:15.7]} 21. Ne5
{[%clk 0:00:50.6]} 21... Nf6 {[%clk 0:00:13.4]} 22. Ng6 {[%clk 0:00:44.2]} 22...
Nh7 {[%clk 0:00:05.1]} 23. Qc3 {[%clk 0:00:39.5]} 23... Qc7 {[%clk 0:00:03.9]}
24. cxd5 {[%clk 0:00:26.1]} 24... Bxd5 {[%clk 0:00:03.4]} 25. Bxf5 {[%clk
0:00:18.7]} 25... exf5 {[%clk 0:00:02.8]} 26. Rxd5 {[%clk 0:00:18]} 26... Nf6
{[%clk 0:00:03.1]} 27. Rxf5 {[%clk 0:00:16.5]} 27... Red8 {[%clk 0:00:02.3]} 28.
Qc4+ {[%clk 0:00:15.7]} 28... Kh7 {[%clk 0:00:01.8]} 29. Nxf8+ {[%clk
0:00:15.2]} 29... Rxf8 {[%clk 0:00:02.6]} 30. Bxf6 {[%clk 0:00:15.4]} 30... Rxf6
{[%clk 0:00:03.2]} 31. Rxf6 {[%clk 0:00:15.7]} 31... gxf6 {[%clk 0:00:03.9]} 32.
Qe4+ {[%clk 0:00:16.2]} 1-0

[Event "*** Titled Tuesday Blitz"]
[Site "Chess.com"]
[Date "2021.04.20"]
[Round "6"]
[White "DeTimmerman"]
[Black "GM_dmitrij"]
[Result "1-0"]
[WhiteElo "2833"]
[BlackElo "2899"]
[TimeControl "180+1"]
[EndTime "11:05:35 PDT"]
[Termination "DeTimmerman won on time"]

1. b4 {[%clk 0:03:00.9]} 1... e5 {[%clk 0:02:57.4]} 2. Bb2 {[%clk 0:03:01.4]}
2... Bxb4 {[%clk 0:02:57.8]} 3. Bxe5 {[%clk 0:03:01.6]} 3... Nf6 {[%clk
0:02:58.3]} 4. Nc3 {[%clk 0:03:02.1]} 4... O-O {[%clk 0:02:58.3]} 5. Bxf6 {[%clk
0:03:02.6]} 5... Qxf6 {[%clk 0:02:57.3]} 6. Nd5 {[%clk 0:03:03.5]} 6... Qd6
{[%clk 0:02:56.6]} 7. c4 {[%clk 0:03:03.3]} 7... Ba5 {[%clk 0:02:47.8]} 8. e3
{[%clk 0:03:02.7]} 8... c6 {[%clk 0:02:47.2]} 9. Nf4 {[%clk 0:03:03]} 9... Qe7
{[%clk 0:02:38.9]} 10. Nf3 {[%clk 0:02:58.8]} 10... d6 {[%clk 0:02:32.9]} 11.
Be2 {[%clk 0:02:58.4]} 11... Nd7 {[%clk 0:02:28.6]} 12. O-O {[%clk 0:02:58.5]}
12... Nf6 {[%clk 0:02:21.3]} 13. d4 {[%clk 0:02:58.9]} 13... Bf5 {[%clk
0:02:20.2]} 14. Bd3 {[%clk 0:02:58.7]} 14... Ne4 {[%clk 0:02:17.3]} 15. Qc2
{[%clk 0:02:56.5]} 15... Rae8 {[%clk 0:02:14.2]} 16. Nh5 {[%clk 0:02:50.4]}
16... Bg4 {[%clk 0:02:02.3]} 17. Ng3 {[%clk 0:02:44.6]} 17... Bxf3 {[%clk
0:01:56.1]} 18. gxf3 {[%clk 0:02:45.5]} 18... Nd2 {[%clk 0:01:54]} 19. Kg2
{[%clk 0:02:24.8]} 19... Nxf1 {[%clk 0:01:53.6]} 20. Rxf1 {[%clk 0:02:24.7]}
20... g6 {[%clk 0:01:53.1]} 21. f4 {[%clk 0:02:21.1]} 21... a6 {[%clk
0:01:35.3]} 22. Rh1 {[%clk 0:02:19]} 22... Qh4 {[%clk 0:01:30.8]} 23. Rb1 {[%clk
0:02:15.3]} 23... Qe7 {[%clk 0:01:26.7]} 24. h4 {[%clk 0:02:05.6]} 24... b5
{[%clk 0:01:18.6]} 25. Rh1 {[%clk 0:01:57.5]} 25... c5 {[%clk 0:01:10.5]} 26.
dxc5 {[%clk 0:01:44.8]} 26... dxc5 {[%clk 0:01:10.2]} 27. h5 {[%clk 0:01:43.8]}
27... bxc4 {[%clk 0:00:53]} 28. Bxc4 {[%clk 0:01:44.7]} 28... Qb7+ {[%clk
0:00:43.4]} 29. Kg1 {[%clk 0:01:22.2]} 29... Qc6 {[%clk 0:00:42.7]} 30. hxg6
{[%clk 0:01:18.8]} 30... Qxg6 {[%clk 0:00:40.1]} 31. Bd3 {[%clk 0:01:18.8]}
31... f5 {[%clk 0:00:26]} 32. Bxf5 {[%clk 0:01:12.2]} 32... Rxf5 {[%clk
0:00:20.5]} 33. Qxf5 {[%clk 0:01:13.1]} 33... Qxf5 {[%clk 0:00:20.4]} 34. Nxf5
{[%clk 0:01:14]} 34... c4 {[%clk 0:00:21.2]} 35. Kg2 {[%clk 0:01:11.5]} 35...
Bd2 {[%clk 0:00:16]} 36. Nd6 {[%clk 0:01:09.6]} 36... Re6 {[%clk 0:00:11.4]} 37.
Nxc4 {[%clk 0:01:09.3]} 37... Bc3 {[%clk 0:00:12.3]} 38. Kf3 {[%clk 0:01:05.6]}
38... Rc6 {[%clk 0:00:11.7]} 39. Ne5 {[%clk 0:01:05.8]} 39... Rc5 {[%clk
0:00:12.2]} 40. Ke4 {[%clk 0:01:05.3]} 40... Ra5 {[%clk 0:00:12.1]} 41. Rg1+
{[%clk 0:01:03.2]} 41... Kf8 {[%clk 0:00:12]} 42. Rc1 {[%clk 0:01:00.9]} 42...
Bb4 {[%clk 0:00:06.9]} 43. Rc8+ {[%clk 0:00:55.8]} 43... Kg7 {[%clk 0:00:07.2]}
44. Rc7+ {[%clk 0:00:52.9]} 44... Kg8 {[%clk 0:00:07.7]} 45. Ng4 {[%clk
0:00:50.7]} 45... h5 {[%clk 0:00:05.2]} 46. Nf6+ {[%clk 0:00:50.6]} 46... Kf8
{[%clk 0:00:05.9]} 47. Rh7 {[%clk 0:00:44.7]} 47... Rxa2 {[%clk 0:00:03.3]} 48.
Kf5 {[%clk 0:00:44.7]} 1-0

[Event "*** Titled Tuesday Blitz"]
[Site "Chess.com"]
[Date "2021.04.20"]
[Round "6"]
[White "Szparu"]
[Black "Vaathi_Coming"]
[Result "0-1"]
[WhiteElo "2683"]
[BlackElo "2908"]
[TimeControl "180+1"]
[EndTime "11:05:38 PDT"]
[Termination "Vaathi_Coming won by resignation"]

1. e4 {[%clk 0:03:00.9]} 1... e5 {[%clk 0:03:00.1]} 2. Nf3 {[%clk 0:02:58.9]}
2... Nc6 {[%clk 0:03:00.6]} 3. Bb5 {[%clk 0:02:58.8]} 3... a6 {[%clk 0:03:00.2]}
4. Ba4 {[%clk 0:02:58.8]} 4... Nf6 {[%clk 0:03:00.7]} 5. O-O {[%clk 0:02:58.6]}
5... b5 {[%clk 0:03:00.2]} 6. Bb3 {[%clk 0:02:58.5]} 6... Bc5 {[%clk 0:03:00.8]}
7. c3 {[%clk 0:02:58.3]} 7... d6 {[%clk 0:03:01.3]} 8. a4 {[%clk 0:02:56.3]}
8... Rb8 {[%clk 0:03:00.9]} 9. d4 {[%clk 0:02:56.3]} 9... Bb6 {[%clk 0:03:01.3]}
10. a5 {[%clk 0:02:56.8]} 10... Ba7 {[%clk 0:03:01.4]} 11. h3 {[%clk 0:02:57.4]}
11... Bb7 {[%clk 0:02:59.7]} 12. Re1 {[%clk 0:02:53.1]} 12... Ne7 {[%clk
0:02:57.8]} 13. Nbd2 {[%clk 0:02:29.9]} 13... Ng6 {[%clk 0:02:57]} 14. Bc2
{[%clk 0:02:18.9]} 14... O-O {[%clk 0:02:56.8]} 15. Nf1 {[%clk 0:02:19.1]} 15...
h6 {[%clk 0:02:50]} 16. Ng3 {[%clk 0:02:19]} 16... Re8 {[%clk 0:02:49.2]} 17. b3
{[%clk 0:02:15.8]} 17... Qd7 {[%clk 0:02:23.6]} 18. b4 {[%clk 0:01:51.7]} 18...
Rbd8 {[%clk 0:02:18.8]} 19. Bb2 {[%clk 0:01:45.5]} 19... Qc8 {[%clk 0:02:13.6]}
20. Qe2 {[%clk 0:01:40]} 20... Nf4 {[%clk 0:02:10]} 21. Qf1 {[%clk 0:01:40.3]}
21... c5 {[%clk 0:02:00.6]} 22. bxc5 {[%clk 0:01:33.7]} 22... exd4 {[%clk
0:02:00.5]} 23. cxd4 {[%clk 0:01:32.5]} 23... dxc5 {[%clk 0:02:00.4]} 24. d5
{[%clk 0:01:32.6]} 24... N6h5 {[%clk 0:01:39.7]} 25. Nf5 {[%clk 0:01:32.6]}
25... c4 {[%clk 0:01:38.4]} 26. Bc3 {[%clk 0:01:31.3]} 26... Bc5 {[%clk
0:01:31.6]} 27. Rab1 {[%clk 0:01:25.3]} 27... Kh7 {[%clk 0:01:08.6]} 28. Kh2
{[%clk 0:00:51.7]} 28... g6 {[%clk 0:01:05.9]} 29. Ng3 {[%clk 0:00:43.5]} 29...
Qc7 {[%clk 0:00:52.4]} 30. Red1 {[%clk 0:00:33.4]} 30... Bc8 {[%clk 0:00:33.8]}
31. Nd4 {[%clk 0:00:31.7]} 31... Bd7 {[%clk 0:00:27.5]} 32. e5 {[%clk
0:00:25.2]} 32... Rxe5 {[%clk 0:00:25]} 33. Nxh5 {[%clk 0:00:25.4]} 33... Rxh5
{[%clk 0:00:24]} 34. Kg1 {[%clk 0:00:23.6]} 34... Nxh3+ {[%clk 0:00:14.7]} 35.
gxh3 {[%clk 0:00:23.7]} 35... Bxh3 {[%clk 0:00:15.5]} 36. Qe2 {[%clk 0:00:15.6]}
36... Rg5+ {[%clk 0:00:15.8]} 37. Kh1 {[%clk 0:00:15.9]} 37... Bg2+ {[%clk
0:00:16]} 38. Kg1 {[%clk 0:00:16.4]} 38... Bf3+ {[%clk 0:00:14.4]} 39. Kf1
{[%clk 0:00:17.3]} 39... Bxe2+ {[%clk 0:00:14.3]} 40. Nxe2 {[%clk 0:00:18.2]}
40... Qh2 {[%clk 0:00:12.8]} 0-1